[Event "Baku Open 2024"]
[Site "Baku"]
[Date "2024.07.03"]
[Round "5.37"]
[White "Valiyev, Shahin"]
[Black "Ishvi Aggarwal"]
[Result "1-0"]
[ECO "B90"]
[WhiteElo "2244"]
[BlackElo "1928"]
[Annotator "TA"]
[PlyCount "35"]
[EventDate "2024.06.29"]
[EventType "swiss"]
[EventCountry "AZE"]
[SourceTitle "playchess.com"]
[Source "ChessBase"]
[SourceQuality "1"]
[TimeControl "5400+30"]

{[%evp 13,35,0,53,33,45,38,45,23,32,0,0,0,0,0,0,0,0,-1,-7,-8,28,25,589,577]} 1. e4 {[%emt 0:00:06]} c5 {[%emt 0:00:06]} 2. Nf3 {[%emt 0:00:05]} d6 {[%emt 0:00:03]} 3. d4 {[%emt 0:00:07]} cxd4 {[%emt 0:00:05]} 4. Nxd4 {[%emt 0:00:05]} Nf6 {[%emt 0:00:06]} 5. Nc3 {[%emt 0:00:07]} a6 {[%emt 0:00:05]} 6. h3 {[%emt 0:01:36]} e5 {[%emt 0:00:42]} 7. Nde2 {[%emt 0:00:05]} Be7 {[%emt 0:00:44]} (7... b5 $11) 8. g4 $14 {[%emt 0:00:39]} h6 {[%emt 0:01:40]} 9. Be3 {[%emt 0:03:35]} b5 {[%emt 0:13:19]} 10. Bg2 {[%emt 0:02:00] White is slightly better.} Qc7 {[%emt 0:11:04]} 11. a3 {[%emt 0:00:38]} Nbd7 {[%emt 0:02:16]} 12. O-O {[%emt 0:07:53]} O-O {[%emt 0:02:05]} 13. Ng3 {[%emt 0:13:17]} Nb6 {[%emt 0:04:35]} 14. Qc1 {[%emt 0:08:24]} Rd8 {[%emt 0:08:40]} 15. Kh1 {[%emt 0:06:04]} Nh7 {[%emt 0:10:28]} 16. f4 {[%emt 0:04:26]} Bb7 {[%emt 0:11:29]} 17. Nf5 {[%emt 0:03:41]} exf4 $2 {[%emt 0:04:01][%mdl 8192] [#]} (17... Bf8 $11 {and Black is okay.}) 18. Bxb6 {[%emt 0:00:22] Weighted Error Value: White=0.07 (flawless) /Black=0.66.  Loses game:     	---       	Black=1      Inaccurate:     	White=1     	Black=1      OK:         	White=1     	Black=5} ({Worse is} 18. Bxf4 Bf6 $11) 1-0

[Event "Baku Open 2024"]
[Site "Baku"]
[Date "2024.07.03"]
[Round "5.38"]
[White "Kaldarova, Ayaulym"]
[Black "Kairbekova, Amina"]
[Result "1-0"]
[ECO "A13"]
[WhiteElo "2100"]
[BlackElo "2244"]
[Annotator "TA"]
[PlyCount "125"]
[EventDate "2024.06.29"]
[EventType "swiss"]
[EventCountry "AZE"]
[SourceTitle "playchess.com"]
[Source "ChessBase"]
[SourceQuality "1"]
[TimeControl "5400+30"]

1. Nf3 {[%emt 0:00:07]} Nf6 {[%emt 0:00:05]} 2. c4 {[%emt 0:00:08]} e6 {[%emt 0:00:19]} 3. g3 {[%emt 0:00:28]} d5 {[%emt 0:00:06]} 4. Bg2 {[%emt 0:00:07]} d4 {[%emt 0:00:03]} 5. O-O {[%emt 0:00:21]} Nc6 {[%emt 0:00:09]} 6. e3 {[%emt 0:01:10]} e5 {[%emt 0:00:53]} 7. exd4 {[%emt 0:03:28]} e4 {[%emt 0:02:11]} 8. Re1 {[%emt 0:02:08]} Be7 {[%emt 0:00:09]} 9. Ng5 {[%emt 0:02:32]} Bg4 {[%emt 0:01:31]} 10. Qa4 {[%emt 0:02:43]} O-O {[%emt 0:00:14]} 11. h3 {[%emt 0:13:03]} Bh5 {[%emt 0:00:43]} 12. Nxe4 {[%emt 0:18:04]} Nxe4 {[%emt 0:00:46]} 13. Bxe4 {[%emt 0:01:28]} Nxd4 {[%emt 0:00:11]} 14. Nc3 {[%emt 0:05:21]} f5 {[%emt 0:06:44]} 15. Bd5+ {[%emt 0:00:44]} Kh8 {[%emt 0:00:06]} 16. d3 {[%emt 0:01:47]} c6 {[%emt 0:22:26]} 17. Be3 {[%emt 0:03:05]} Bc5 {[%emt 0:09:56]} 18. Bg2 {[%emt 0:07:46]} f4 {[%emt 0:06:05]} 19. gxf4 {[%emt 0:01:10]} a6 {[%emt 0:00:07]} 20. b4 {[%emt 0:10:48]} b5 {[%emt 0:00:11]} 21. Qa3 {[%emt 0:00:24]} Nc2 {[%emt 0:00:49]} 22. Qb2 {[%emt 0:00:13]} Nxe1 {[%emt 0:01:10]} (22... Nxa1 $2 23. Bxc5 (23. bxc5 Qxd3 24. Rxa1 bxc4 $18) 23... Rxf4 24. Ne2 $18 (24. Qxa1 Qxd3 25. Ne4 Re8 $18) (24. Bxc6 Qg5+ 25. Kh2 Bf3 $18)) (22... Bxe3 23. Qxc2 Bd4 $14) 23. Rxe1 {[%emt 0:00:07]} Bxe3 {[%emt 0:00:08]} 24. Rxe3 {[%emt 0:00:13]} Qf6 {[%emt 0:03:26]} (24... Rxf4 25. Bxc6 Rb8 26. Ne4 $15 (26. Nd5 Rf5 $17)) (24... bxc4 $1 $19 25. dxc4 Rxf4 26. Bxc6 Rc8) 25. Re5 {[%emt 0:06:41]} Bg6 {[%emt 0:00:25]} (25... Qxf4 $2 26. Rxh5 Rf6 27. Ne4 $18) 26. Ne4 {[%emt 0:02:46]} Bxe4 {[%emt 0:44:37]} (26... Qxf4 $2 27. c5 $19) 27. Bxe4 {[%emt 0:00:13]} bxc4 {[%emt 0:00:00]} 28. dxc4 {[%emt 0:01:08]} Rad8 {[%emt 0:00:00]} (28... Qxf4 {is interesting.} 29. Bxc6 Rab8 30. Re4 Qd6) 29. Qe2 {[%emt 0:01:18]} ({White should try} 29. Qc1) 29... Qxf4 $17 {[%emt 0:00:00]} 30. Bxc6 {[%emt 0:05:39] [#]} Rd1+ $2 {[%emt 0:00:00]} (30... Rd2 $3 $17 {[%mdl 512]} 31. Qf3 g6 (31... Qxf3 32. Bxf3 Rxa2 33. c5 $15) 32. Qxf4 Rxf4) 31. Qxd1 $11 {[%emt 0:00:26]} Qxe5 {[%emt 0:00:00]} 32. b5 {[%emt 0:02:23]} (32. Qd2 $1 $11 {remains equal.}) 32... Qc3 {[%emt 0:00:00]} (32... Qb2 $17 33. f3 Qxa2) 33. Qe2 $11 {[%emt 0:01:32]} axb5 {[%emt 0:00:00]} 34. cxb5 {[%emt 0:00:06]} Qxh3 {[%emt 0:00:00]} 35. a4 {[%emt 0:07:11]} Qa3 {[%emt 0:00:00]} 36. Qc2 {[%emt 0:00:34]} Qb4 {[%emt 0:00:00]} 37. Be4 {[%emt 0:00:53]} Re8 {[%emt 0:00:00]} 38. f3 {[%emt 0:00:26]} (38. Bf3 $11 {was the only way to keep the balance.}) 38... Qe1+ {[%emt 0:00:00]} (38... Rd8 $17 {Hoping for ...Qe1+.} 39. Kf1 h5) 39. Kg2 $11 {[%emt 0:00:10]} Rd8 {[%emt 0:00:00]} 40. Kh3 {[%emt 0:00:40]} Qe3 {[%emt 0:00:00]} 41. Qc6 {[%emt 0:00:32]} Qg5 {[%emt 0:04:13]} 42. b6 {[%emt 0:00:21]} Qh5+ {[%emt 0:00:05]} 43. Kg3 {[%emt 0:00:04]} Qe5+ {[%emt 0:00:06]} 44. Kh3 {[%emt 0:00:47]} g6 {[%emt 0:02:31]} 45. b7 {[%emt 0:00:40]} Kg7 {[%emt 0:00:50]} 46. Qc1 {[%emt 0:00:58]} Qh5+ $2 {[%emt 0:01:42]} (46... Kf6 $1 $11 {and Black stays safe.}) 47. Kg3 $1 $18 {[%emt 0:00:05]} Qe5+ {[%emt 0:00:03]} 48. Kh3 $2 {[%emt 0:00:03]} (48. Qf4 $18 Qa5 49. Kh3 (49. b8=B Rxb8 50. Qxb8 Qg5+ 51. Kh3 Qh6+ 52. Kg2 Qd2+ 53. Kg3 Qg5+ 54. Kf2 Qd2+ 55. Kg3 Qg5+ $11) (49. b8=R Qe1+ 50. Kh3 Qh1+ 51. Kg3 Qe1+ 52. Kg4 h5+ 53. Kh3 Qh1+ 54. Kg3 Qe1+ 55. Kh3 Qh1+ 56. Kg3 Qe1+ 57. Kh3 $11)) 48... g5 {[%emt 0:00:51] [#]} (48... Qh5+ $11 {keeps the balance.} 49. Kg3 Qa5) 49. a5 $1 $16 {[%emt 0:01:19]} h5 {[%emt 0:00:10]} (49... g4+ $16 50. Kg2 (50. Kxg4 Rg8 $11) (50. fxg4 h5 $14) 50... gxf3+ 51. Bxf3 Qxa5) 50. Qc6 {[%emt 0:00:29]} ({White should play} 50. a6 $18 {And now a7 would win.} g4+ 51. Kg2 gxf3+ 52. Bxf3) 50... g4+ $16 {[%emt 0:00:57]} 51. fxg4 {[%emt 0:00:33]} hxg4+ {[%emt 0:00:05]} 52. Kxg4 {[%emt 0:00:05]} Rg8 {[%emt 0:00:21]} (52... Qxa5 $16 53. Qg6+ Kf8) 53. Kf3 $2 {[%emt 0:00:46]} ({White must play} 53. a6 $18) 53... Rf8+ $11 {[%emt 0:00:19]} 54. Ke3 {[%emt 0:00:32]} Qf4+ $2 {[%emt 0:01:13][%mdl 8192]} (54... Qg5+ $11 55. Kd3 Rd8+ 56. Kc4 Qxa5) 55. Kd3 $18 {[%emt 0:00:37]} Rd8+ {[%emt 0:00:29]} 56. Kc4 {[%emt 0:00:30]} Qf1+ {[%emt 0:00:31]} 57. Kc5 {[%emt 0:00:30]} (57. Kb3 $142 Qf7+ 58. Qc4) 57... Qf2+ {[%emt 0:00:31]} 58. Kb5 {[%emt 0:00:09]} Qe2+ {[%emt 0:00:30]} 59. Kb6 {[%emt 0:00:30]} Qe3+ {[%emt 0:00:31]} 60. Ka6 {[%emt 0:00:45]} (60. Kc7 $142 Qg5 61. Qg6+ (61. b8=B Qe7+ 62. Kb6 Rxb8+ 63. Ka6 Qe5 $11) (61. Qc3+ Kg8 $18) 61... Qxg6 62. Bxg6 Rd5 63. a6 (63. b8=B Rxa5 64. Bc2 Rc5+ 65. Kb6 Rxc2 $11) (63. b8=Q Rd2 64. Be8 Rc2+ 65. Kb6 Rb2+ 66. Bb5 Kg6 67. a6 Kh7) 63... Kxg6 64. b8=Q (64. b8=B Ra5 $11) 64... Kf5 65. Qf8+ (65. a7 Rc5+ 66. Kd6 Ra5 67. a8=Q Rxa8 68. Qxa8 Kf4 69. Qd5 Kg4) 65... Ke5 66. Qb4) 60... Qe2+ {[%emt 0:00:15] [#]} 61. Ka7 $1 {[%emt 0:00:27]} Qf2+ {[%emt 0:00:39]} 62. Qb6 {[%emt 0:00:26]} Qf7 {[%emt 0:00:35]} 63. Qxd8 {[%emt 0:00:23]} 1-0

[Event "Baku Open 2024"]
[Site "Baku"]
[Date "2024.07.03"]
[Round "5.39"]
[White "Zhalmakhanov, Ramazan"]
[Black "Vrashank Chouhan"]
[Result "1/2-1/2"]
[ECO "B13"]
[WhiteElo "2505"]
[BlackElo "2209"]
[Annotator "TA"]
[PlyCount "153"]
[EventDate "2024.06.29"]
[EventType "swiss"]
[EventCountry "AZE"]
[SourceTitle "playchess.com"]
[Source "ChessBase"]
[SourceQuality "1"]
[TimeControl "5400+30"]

{[%evp 65,153,-106,-83,-120,-123,-177,0,0,0,0,0,0,0,0,0,0,0,0,0,0,0,-18,-16,-16,-13,-15,0,-34,-31,-81,-106,-116,-104,-97,-69,-128,-93,-171,-49,-92,-91,-87,-47,-77,0,-91,-55,-60,-60,-94,-81,-108,-106,-802,0,-20,-21,-20,-12,-11,-13,-112,-111,-557,-570,-635,-618,-631,-643,-594,-642,-633,-646,-619,-618,-586,-592,-576,-579,-534,-492,-506,-411,-401,-20,-20,-20,-20,0,0]} 1. d4 {[%emt 0:07:07]} d5 {[%emt 0:00:07]} 2. Bf4 {[%emt 0:00:10]} Nf6 {[%emt 0:00:08]} 3. Nc3 {[%emt 0:00:04]} c5 {[%emt 0:00:12]} 4. e3 {[%emt 0:00:07]} cxd4 {[%emt 0:00:45]} 5. exd4 {[%emt 0:00:07]} a6 {[%emt 0:00:07]} 6. Nf3 {[%emt 0:00:05] B13: Caro-Kann: Exchange Variation and Panov-Botvinnik Attack.} Nc6 {[%emt 0:00:12]} 7. Ne5 {[%emt 0:00:11]} Bd7 {[%emt 0:00:40]} 8. g3 {[%emt 0:00:09]} e6 {[%emt 0:00:52]} 9. Bg2 {[%emt 0:00:07]} Nxe5 {[%emt 0:00:41]} 10. dxe5 {[%emt 0:03:29]} Ng8 {[%emt 0:00:08]} 11. h4 {[%emt 0:02:11]} Rc8 {[%emt 0:01:06]} 12. O-O {[%emt 0:00:12]} Ne7 {[%emt 0:04:05]} 13. h5 $146 {[%emt 0:02:45]} ({Predecessor:} 13. Qd2 Ng6 14. Be3 Bb4 15. Rfe1 Ne7 16. a3 Bxc3 17. bxc3 Ba4 18. Qd1 Rxc3 19. Qg4 Bxc2 20. Qxg7 {0-1 Wilke,O-Papenfuss,I IECC T002014}) 13... h6 {[%emt 0:00:54]} 14. Re1 {[%emt 0:02:26]} g5 {[%emt 0:04:16]} 15. hxg6 {[%emt 0:07:50]} Nxg6 {[%emt 0:01:21]} 16. Be3 {[%emt 0:05:13]} h5 {[%emt 0:05:29]} 17. Bd4 {[%emt 0:02:41]} Bc5 {[%emt 0:09:04]} 18. Nxd5 {[%emt 0:02:14]} exd5 {[%emt 0:02:44]} 19. e6 {[%emt 0:02:56]} fxe6 {[%emt 0:13:29]} 20. Bxh8 {[%emt 0:00:31]} Nxh8 {[%emt 0:00:04]} 21. Qxh5+ {[%emt 0:08:58]} Nf7 {[%emt 0:00:05]} 22. Bxd5 {[%emt 0:00:22]} Qf6 {[%emt 0:12:03]} 23. Re2 {[%emt 0:01:18]} Kf8 {[%emt 0:03:26]} 24. Bxb7 {[%emt 0:02:52]} Rc7 {[%emt 0:00:04]} 25. Bg2 {[%emt 0:04:04]} Bb5 {[%emt 0:05:10]} 26. Rd2 {[%emt 0:07:41]} Qxb2 {[%emt 0:00:09]} 27. Rad1 {[%emt 0:00:05]} Qf6 {[%emt 0:02:18]} 28. Rb1 {[%emt 0:07:19]} Qc3 {[%emt 0:12:15]} 29. Rbd1 {[%emt 0:00:30]} Bb6 {[%emt 0:01:39]} 30. Qg4 {[%emt 0:03:27]} Qf6 {[%emt 0:01:41]} 31. Qb4+ {[%emt 0:01:39]} Kg7 {[%emt 0:00:58]} 32. Qg4+ {[%emt 0:01:12]} Kf8 {[%emt 0:00:06]} 33. Re1 {[%emt 0:03:39] [#]} (33. Qb4+ $1 $11 {keeps the balance.} Kg7 34. Qg4+) 33... Ng5 $1 $17 {[%emt 0:03:27]} 34. Qb4+ {[%emt 0:07:54]} Kg7 {[%emt 0:02:46]} 35. Qg4 {[%emt 0:11:09]} (35. Qf4 $17 Ba5 (35... Qxf4 36. gxf4 Ba5 37. c3 $11) 36. c3 (36. Qd6 $2 Nf7 $19) 36... Rxc3 (36... Qxf4 37. gxf4 Rxc3 38. fxg5 $11) 37. Rb2) 35... Rc4 $2 {[%emt 0:05:34]} (35... Rf7 $19 {[%cal Rb6f2]} 36. Kh2 Ba5 (36... Bxf2 37. Rxf2 Qxf2 38. Qxg5+ Kf8 39. Qd8+ Be8 40. Qd6+ Kg8 41. Rxe6 $16) 37. Rxe6 Qxe6 38. Qxg5+ Qg6 39. Qxg6+ Kxg6 40. Rd6+ Kg7) 36. Re4 $1 $11 {[%emt 0:00:38]} Rxe4 $1 {[%emt 0:04:51]} 37. Bxe4 {[%emt 0:00:05]} Ba5 {[%emt 0:00:05]} 38. Rd1 {[%emt 0:01:58]} Bb6 {[%emt 0:00:06]} 39. Rd2 {[%emt 0:01:04]} Ba5 {[%emt 0:02:55]} 40. Rd6 {[%emt 0:01:38]} Bc7 {[%emt 0:01:46]} 41. Rd2 {[%emt 0:01:17]} Ba5 {[%emt 0:00:06]} 42. c3 {[%emt 0:00:08]} Bxc3 {[%emt 0:00:10]} 43. Rc2 {[%emt 0:00:01]} Bd4 {[%emt 0:01:08]} 44. Kg2 {[%emt 0:00:34]} Kf8 {[%emt 0:00:32]} 45. Bb7 {[%emt 0:00:22]} e5 {[%emt 0:02:37]} 46. Rc8+ {[%emt 0:01:47]} Ke7 {[%emt 0:00:36]} 47. Rc7+ {[%emt 0:00:53]} ({Better is} 47. f3 $15) 47... Kd6 $17 {[%emt 0:00:15]} 48. Rc2 {[%emt 0:00:02]} Ba4 {[%emt 0:00:43]} 49. Rd2 {[%emt 0:00:29]} Ne6 {[%emt 0:00:06]} 50. Qe4 {[%emt 0:00:49]} (50. Qf3 $15 Qxf3+ 51. Bxf3) 50... Bb5 {[%emt 0:00:50]} 51. Rc2 {[%emt 0:00:29] [#]} (51. Ba8 $17) 51... Ke7 {[%emt 0:00:30]} (51... Nc5 $1 $19 {[%cal Rc5e4]} 52. Qd5+ Ke7) 52. Ba8 {[%emt 0:00:59]} Nc5 {[%emt 0:00:23]} 53. Qh7+ {[%emt 0:00:29]} Qf7 {[%emt 0:00:42]} 54. Qh4+ {[%emt 0:00:02]} Qf6 {[%emt 0:01:04]} 55. Qh7+ $1 {[%emt 0:00:14]} Kf8 {[%emt 0:00:00]} 56. Qc7 {[%emt 0:00:23]} Bd3 {[%emt 0:00:21]} (56... Bd7 $5 57. Rd2 Qf5 58. Rxd4 exd4 59. Qd6+ Kf7 60. Qxd4 Be6 $19) 57. Qc8+ {[%emt 0:01:20]} Kg7 {[%emt 0:00:22]} 58. Rd2 {[%emt 0:00:27]} e4 {[%emt 0:00:13]} 59. Bd5 $2 {[%emt 0:00:27][%mdl 8192]} (59. Qg4+ $17 Qg6 60. Qxg6+ Kxg6 61. Rd1) 59... e3 $2 {[%emt 0:00:56]} (59... Qf3+ $19 60. Kh2 Qh5+ (60... Bxf2 61. Qc7+ Kg6 62. Qd6+ Kf5 63. Qf8+ Ke5 64. Qxf3 $11) 61. Qh3 Qxd5 62. Qg4+ Kf7 63. Qf4+ Ke8) 60. Qg4+ {[%emt 0:00:18]} (60. Rxd3 $5 Qxf2+ (60... Nxd3 61. Qg4+ Kh6 62. Qh3+ Kg6 63. Be4+ Kg7 64. Qg4+ Kf8 65. Bxd3 $11) 61. Kh1 Qf1+ (61... Nxd3 62. Qg4+ Kh6 63. Qh4+ Kg6 64. Qxd4 $11) 62. Kh2 Qe2+ (62... Nxd3 63. Qg4+ Kh6 64. Qh4+ Kg6 65. Be4+ Kf7 66. Qh7+ Kf8 67. Bxd3 $11) (62... Qxd3 63. Qc7+ Kh6 64. Qf4+ Kh7 65. Qc7+ Bg7 66. Qxc5 $11) 63. Kg1 (63. Bg2 $2 Qxd3 64. Qc7+ Kf6 $19) 63... Nxd3 (63... Qxd3 64. Qc7+ Kh6 65. Qf4+ Kh7 66. Qf7+ Kh6 67. Qf4+ Kh7 68. Qf7+ Bg7 69. Qh5+ Bh6 70. Qf7+ Bg7 71. Qh5+ Bh6 72. Qf7+ Bg7 $11) 64. Qg8+ Kh6 65. Qe6+ Kg5 66. Qg8+ Kh6 67. Qe6+ Kg5 68. Qg8+ Kh6 $11) 60... Kf8 {[%emt 0:00:26]} 61. fxe3 {[%emt 0:00:48]} Bf1+ {[%emt 0:00:29]} 62. Kh1 {[%emt 0:00:20]} Bxe3 {[%emt 0:00:34]} 63. Qc8+ {[%emt 0:00:35]} (63. Rd1 $11) 63... Ke7 $17 {[%emt 0:00:10]} 64. Rh2 $2 {[%emt 0:00:22][%mdl 8192]} (64. Qc7+ $17 Nd7 65. Bc6 Qh8+ (65... Bxd2 66. Qxd7+ Kf8 67. Qe8+ Kg7 68. Qd7+ Kf8 69. Qc8+ Kg7 70. Qd7+ Kf8 $11) 66. Rh2) 64... Bd3 $19 {[%emt 0:00:54]} 65. Rg2 {[%emt 0:00:43]} Qg5 {[%emt 0:00:32]} 66. Bf3 {[%emt 0:00:24]} Qh6+ {[%emt 0:00:25]} 67. Rh2 {[%emt 0:00:05]} Qf6 {[%emt 0:00:12]} 68. Qg4 {[%emt 0:01:01]} Qa1+ {[%emt 0:00:37]} 69. Bd1 {[%emt 0:00:02]} Be4+ {[%emt 0:00:16]} 70. Rg2 {[%emt 0:00:01]} Bxg2+ {[%emt 0:01:00]} 71. Kxg2 {[%emt 0:00:02]} Qxa2+ {[%emt 0:00:09]} 72. Be2 {[%emt 0:00:03]} Qb2 {[%emt 0:00:43]} 73. Qf3 {[%emt 0:00:21]} Qe5 {[%emt 0:00:34]} 74. Bc4 {[%emt 0:00:01]} Qe4 $2 {[%emt 0:00:33]} (74... a5 $19 {...Qe4 is the strong threat.} 75. Bd5 a4) 75. Qxe4+ $11 {[%emt 0:00:21]} Nxe4 {[%emt 0:00:11]} 76. Bxa6 {[%emt 0:00:05]} Nxg3 {[%emt 0:00:38]} 77. Kxg3 {[%emt 0:00:09]} 1/2-1/2

[Event "Baku Open 2024"]
[Site "Baku"]
[Date "2024.07.03"]
[Round "5.40"]
[White "Aliyev, Ravan"]
[Black "Dimitrova, Aleksandra"]
[Result "1-0"]
[ECO "A13"]
[WhiteElo "2352"]
[BlackElo "2138"]
[Annotator "TA"]
[PlyCount "73"]
[EventDate "2024.06.29"]
[EventType "swiss"]
[EventCountry "AZE"]
[SourceTitle "playchess.com"]
[Source "ChessBase"]
[SourceQuality "1"]
[TimeControl "5400+30"]

{[%evp 11,73,-8,-6,-31,-9,-27,-5,-79,-78,-84,-16,-23,-9,-8,0,0,12,0,14,34,44,43,78,72,49,10,25,17,34,33,23,43,56,22,77,68,162,164,181,182,152,152,303,295,355,350,523,509,497,454,807,766,2668,2630,5465,5281,29989,29990,29990,29977,29990,29991,29992,29993]} 1. Nf3 {[%emt 0:00:03]} Nf6 {[%emt 0:00:06]} 2. c4 {[%emt 0:00:05]} e6 {[%emt 0:00:06]} 3. g3 {[%emt 0:00:05]} d5 {[%emt 0:00:06]} 4. b3 {[%emt 0:00:05]} d4 {[%emt 0:02:44]} 5. Bg2 {[%emt 0:00:15]} c5 {[%emt 0:01:15]} 6. O-O {[%emt 0:00:10]} Nc6 {[%emt 0:04:07]} 7. e3 {[%emt 0:01:43]} e5 {[%emt 0:08:31]} 8. d3 {[%emt 0:02:45]} Be7 {[%emt 0:10:50]} 9. e4 {[%emt 0:16:51]} (9. exd4 $11 {remains equal.} exd4 10. Bf4) 9... Bg4 $17 {[%emt 0:03:14]} 10. h3 {[%emt 0:01:57]} Bxf3 {[%emt 0:00:13]} ({Black should play} 10... Bd7 $17) 11. Qxf3 $11 {[%emt 0:01:40]} h5 {[%emt 0:06:54]} 12. h4 {[%emt 0:11:11]} Qd7 {[%emt 0:06:50]} 13. Nd2 {[%emt 0:01:36]} g6 {[%emt 0:07:37]} 14. Qe2 {[%emt 0:00:44]} O-O-O {[%emt 0:04:12]} 15. a3 {[%emt 0:02:22]} Rdg8 {[%emt 0:06:31]} 16. Nf3 {[%emt 0:03:52]} Ng4 {[%emt 0:06:28]} 17. Bd2 {[%emt 0:01:30]} Kb8 {[%emt 0:13:14]} 18. Qe1 {[%emt 0:03:26]} Nd8 {[%emt 0:00:31]} 19. Bh3 {[%emt 0:02:01] And now Nxe5 would win.} f6 {[%emt 0:01:24][%cal Bf7f6,Bf6g5][%mdl 32]} 20. Qe2 {[%emt 0:14:35]} Ne6 {[%emt 0:00:42]} 21. b4 {[%emt 0:00:18]} g5 {[%emt 0:03:44]} 22. hxg5 {[%emt 0:06:14]} Qe8 {[%emt 0:02:46]} (22... fxg5 $11 {keeps the balance.} 23. Ra2 Bd6) 23. Kg2 {[%emt 0:02:40]} Bd6 {[%emt 0:02:19]} (23... fxg5 $14 24. Nxe5 Nxe5 25. Bxe6 Rg7) 24. Rh1 $18 {[%emt 0:11:51]} fxg5 {[%emt 0:04:40] [#]} 25. Bxg4 $1 {[%emt 0:00:07]} hxg4 {[%emt 0:01:58]} 26. Nh2 {[%emt 0:00:07][%cal Bf3h2,Bh2g4,Bg4f6,Bf6d5][%mdl 32]} Qa4 $2 {[%emt 0:01:17]} (26... Qe7 $16 {is a better defense.} 27. Nxg4 (27. Qxg4 Nf4+ 28. Kg1 Nxd3 $11) 27... cxb4) 27. Nxg4 {[%emt 0:01:24]} ({Not} 27. Qxg4 Nf4+ 28. Bxf4 (28. gxf4 $2 {is the wrong capture.} gxf4 $19) 28... gxf4 $11) 27... Rxh1 {[%emt 0:00:20]} 28. Rxh1 {[%emt 0:00:08]} Qxa3 {[%emt 0:00:40]} (28... cxb4 $142 29. axb4 Bxb4 30. Nxe5 Bxd2) 29. b5 {[%emt 0:00:46]} Bc7 {[%emt 0:00:30]} 30. Rh6 {[%emt 0:01:40]} Re8 {[%emt 0:00:39]} (30... Nf4+ $142 31. gxf4 gxf4) 31. Nf6 {[%emt 0:01:13]} Re7 {[%emt 0:00:39]} 32. Nd5 {[%emt 0:00:34]} Re8 {[%emt 0:00:04]} 33. Qh5 {[%emt 0:00:43]} Ng7 {[%emt 0:00:45] [#]} 34. Rh8 $1 {[%emt 0:00:36] White mates.} Rd8 {[%emt 0:00:56]} 35. Rxd8+ {[%emt 0:00:41]} Bxd8 {[%emt 0:00:02]} 36. Qh8 {[%emt 0:00:14][%cal Rh8d8]} Ne6 {[%emt 0:00:08]} 37. Qxe5+ {[%emt 0:00:06] Weighted Error Value: White=0.11 (very precise) /Black=0.59.  Mistake:       	White=1     	Black=6      Inaccurate:     	White=2     	Black=2      OK:         	White=11    	Black=4      Best:        	White=1     	---        Strong:       	White=1     	---} 1-0